[Event "Belt and Road Women 2024"]
[Site "Yuecheng Shaoxing"]
[Date "2024.07.31"]
[Round "7.5"]
[White "Velpula Sarayu"]
[Black "Lu, Miaoyi"]
[Result "1/2-1/2"]
[ECO "C65"]
[WhiteElo "2384"]
[BlackElo "2449"]
[Annotator "RC"]
[PlyCount "89"]
[EventDate "2024.08.01"]
[EventType "swiss"]
[EventCountry "CHN"]
[SourceTitle "playchess.com"]
[Source "ChessBase"]
[SourceQuality "1"]
[TimeControl "5400+30"]

1. e4 {[%emt 0:00:23]} e5 {[%emt 0:00:01]} 2. Nf3 {[%emt 0:00:33]} Nc6 {[%emt 0:00:02]} 3. Bb5 {[%emt 0:00:33]} Nf6 {[%emt 0:00:03]} 4. d3 {[%emt 0:00:32]} Bc5 {[%emt 0:00:02]} 5. Bxc6 {[%emt 0:00:25]} dxc6 {[%emt 0:00:03]} 6. O-O {[%emt 0:00:28]} Qd6 {[%emt 0:00:03]} 7. c3 {[%emt 0:01:14]} Bg4 {[%emt 0:00:02]} 8. Nbd2 {[%emt 0:00:50]} Qe6 {[%emt 0:00:03]} 9. Qb3 {[%emt 0:05:47]} Qxb3 {[%emt 0:00:12]} 10. axb3 {[%emt 0:00:29]} Nd7 {[%emt 0:00:03]} 11. h3 {[%emt 0:01:02]} Bh5 {[%emt 0:01:53]} 12. b4 {[%emt 0:04:12]} Be7 {[%emt 0:00:02]} 13. g4 {[%emt 0:02:59]} Bg6 {[%emt 0:00:06]} 14. Nc4 {[%emt 0:00:20]} f6 {[%emt 0:00:32]} 15. Be3 {[%emt 0:00:36]} a6 {[%emt 0:13:47]} 16. Rfd1 {[%emt 0:13:16]} O-O-O {[%emt 0:04:22]} 17. Ncd2 {[%emt 0:01:29]} c5 {[%emt 0:06:13]} 18. bxc5 {[%emt 0:01:14]} Nxc5 {[%emt 0:00:02]} 19. Bxc5 {[%emt 0:00:37]} Bxc5 {[%emt 0:00:02]} 20. b4 {[%emt 0:00:44]} Be7 {[%emt 0:09:18]} 21. Nc4 {[%emt 0:02:36]} Bf7 {[%emt 0:14:03]} 22. Ne3 {[%emt 0:00:59]} g6 {[%emt 0:04:58]} 23. Kf1 {[%emt 0:04:48]} Rhe8 {[%emt 0:08:30]} 24. Rab1 {[%emt 0:02:55]} c6 {[%emt 0:04:57]} 25. Ke2 {[%emt 0:03:23]} Bd6 {[%emt 0:02:54]} 26. h4 {[%emt 0:08:40]} Be6 {[%emt 0:00:38]} 27. Rh1 {[%emt 0:06:45]} Bb8 {[%emt 0:04:21]} 28. c4 {[%emt 0:08:25]} b5 {[%emt 0:13:01]} 29. h5 {[%emt 0:03:41]} Ba7 {[%emt 0:07:37]} 30. c5 {[%emt 0:01:56]} a5 {[%emt 0:01:48]} 31. Ra1 {[%emt 0:02:28]} a4 {[%emt 0:00:11]} 32. hxg6 {[%emt 0:00:18]} hxg6 {[%emt 0:00:02]} 33. Rh6 {[%emt 0:00:58]} Rg8 {[%emt 0:01:54]} 34. g5 {[%emt 0:00:17]} Bb8 {[%emt 0:00:46]} 35. gxf6 {[%emt 0:02:06]} Rdf8 {[%emt 0:00:01]} 36. Ng5 {[%emt 0:07:59]} Rxf6 {[%emt 0:01:22]} 37. Nxe6 {[%emt 0:00:03]} Rxe6 {[%emt 0:00:05]} 38. Rg1 {[%emt 0:00:08]} Kd7 {[%emt 0:02:39]} 39. Nf5 {[%emt 0:02:58]} Bc7 {[%emt 0:02:30]} 40. f3 {[%emt 0:02:06]} Rf6 {[%emt 0:00:45]} 41. Rh7+ {[%emt 0:05:32]} Kd8 {[%emt 0:00:01]} 42. Rh6 {[%emt 0:00:48]} Ke8 {[%emt 0:00:56]} 43. Rh7 {[%emt 0:00:17]} Kd8 {[%emt 0:00:26]} 44. Rh6 {[%emt 0:00:16]} Ke8 {[%emt 0:00:22]} 45. Rh7 {[%emt 0:02:48]} 1/2-1/2

[Event "Belt and Road Women 2024"]
[Site "Yuecheng Shaoxing"]
[Date "2024.07.31"]
[Round "7.6"]
[White "Zhai, Mo"]
[Black "Zhang, Lanlin"]
[Result "1/2-1/2"]
[ECO "E14"]
[WhiteElo "2348"]
[BlackElo "2161"]
[Annotator "RC"]
[PlyCount "59"]
[EventDate "2024.08.01"]
[EventType "swiss"]
[EventCountry "CHN"]
[SourceTitle "playchess.com"]
[Source "ChessBase"]
[SourceQuality "1"]
[TimeControl "5400+30"]

1. d4 {[%emt 0:00:35]} Nf6 {[%emt 0:00:05]} 2. c4 {[%emt 0:00:06]} e6 {[%emt 0:00:02]} 3. Nf3 {[%emt 0:00:40]} d5 {[%emt 0:00:48]} 4. Nc3 {[%emt 0:02:19]} Be7 {[%emt 0:00:09]} 5. e3 {[%emt 0:01:53]} O-O {[%emt 0:03:39]} 6. Bd3 {[%emt 0:01:41]} b6 {[%emt 0:03:38]} 7. cxd5 {[%emt 0:01:19]} exd5 {[%emt 0:00:29]} 8. b3 {[%emt 0:01:31]} Bb7 {[%emt 0:00:28]} 9. Bb2 {[%emt 0:00:20]} Nbd7 {[%emt 0:00:04]} 10. O-O {[%emt 0:01:23]} a6 {[%emt 0:00:06]} 11. Ne2 {[%emt 0:04:33]} Bd6 {[%emt 0:07:53]} 12. Ng3 {[%emt 0:06:01]} g6 {[%emt 0:08:52]} 13. Ne5 {[%emt 0:01:45]} Ne4 {[%emt 0:13:20]} 14. Rc1 {[%emt 0:26:34]} Qe7 {[%emt 0:03:18]} 15. Bxe4 {[%emt 0:03:52]} dxe4 {[%emt 0:00:47]} 16. Nc6 {[%emt 0:02:48]} Qh4 {[%emt 0:02:05]} 17. d5 {[%emt 0:03:38]} Rae8 {[%emt 0:00:13]} 18. Qd4 {[%emt 0:04:51]} f6 {[%emt 0:00:19]} 19. f4 {[%emt 0:09:57]} Nc5 {[%emt 0:00:43]} 20. Rc2 {[%emt 0:03:19]} a5 {[%emt 0:03:59]} 21. b4 {[%emt 0:10:15]} axb4 {[%emt 0:00:51]} 22. Nxb4 {[%emt 0:00:07]} Bc8 {[%emt 0:06:20]} 23. Bc3 {[%emt 0:04:18]} Bd7 {[%emt 0:01:11]} 24. Nc6 {[%emt 0:00:29]} Ra8 {[%emt 0:04:11]} 25. Qd1 {[%emt 0:03:06]} Bc8 {[%emt 0:09:51]} 26. Nb4 {[%emt 0:00:53]} Bd7 {[%emt 0:00:52]} 27. Nc6 {[%emt 0:00:09]} Bc8 {[%emt 0:00:04]} 28. Nb4 {[%emt 0:00:10]} Bd7 {[%emt 0:00:06]} 29. Nc6 {[%emt 0:00:39]} Bc8 {[%emt 0:00:04]} 30. Nb4 {[%emt 0:00:39]} 1/2-1/2

[Event "Belt and Road Women 2024"]
[Site "Yuecheng Shaoxing"]
[Date "2024.07.31"]
[Round "7.7"]
[White "Xiao, Yiyi"]
[Black "Ni, Shiqun"]
[Result "1-0"]
[ECO "B20"]
[WhiteElo "2338"]
[BlackElo "2352"]
[Annotator "RC"]
[PlyCount "79"]
[EventDate "2024.08.01"]
[EventType "swiss"]
[EventCountry "CHN"]
[SourceTitle "playchess.com"]
[Source "ChessBase"]
[SourceQuality "1"]
[TimeControl "5400+30"]

1. e4 {[%emt 0:00:16]} c5 {[%emt 0:00:07]} 2. Ne2 {[%emt 0:08:46]} Nf6 {[%emt 0:00:12]} 3. Nbc3 {[%emt 0:00:18]} d5 {[%emt 0:00:52]} 4. e5 {[%emt 0:00:24]} Ng4 {[%emt 0:01:11]} 5. d4 {[%emt 0:01:15]} cxd4 {[%emt 0:13:52]} 6. Nxd4 {[%emt 0:00:41]} Nxe5 {[%emt 0:00:32]} 7. Bb5+ {[%emt 0:00:16]} Nec6 {[%emt 0:05:33]} 8. Bf4 {[%emt 0:02:13]} e6 {[%emt 0:10:20]} 9. Bxb8 {[%emt 0:06:42]} Rxb8 {[%emt 0:00:04]} 10. Bxc6+ {[%emt 0:01:06]} bxc6 {[%emt 0:00:02]} 11. Nxc6 {[%emt 0:00:08]} Qb6 {[%emt 0:00:09]} 12. Nxb8 {[%emt 0:00:17]} Qxb8 {[%emt 0:08:32]} 13. Qd3 {[%emt 0:07:05]} Bd7 {[%emt 0:05:12]} 14. O-O {[%emt 0:11:31]} Bd6 {[%emt 0:00:25]} 15. h3 {[%emt 0:01:37]} O-O {[%emt 0:00:17]} 16. Rab1 {[%emt 0:01:22]} Rc8 {[%emt 0:03:08]} 17. b3 {[%emt 0:05:50]} g6 {[%emt 0:13:17]} 18. Ne2 {[%emt 0:03:34]} Qc7 {[%emt 0:08:11]} 19. c4 {[%emt 0:06:09]} dxc4 {[%emt 0:00:05]} 20. Qxc4 {[%emt 0:00:32]} Qb7 {[%emt 0:01:02]} 21. Qd3 {[%emt 0:02:11]} Bc5 {[%emt 0:02:43]} 22. b4 {[%emt 0:08:12]} Bb6 {[%emt 0:00:05]} 23. b5 {[%emt 0:00:47]} e5 {[%emt 0:00:23]} 24. Qd6 {[%emt 0:01:39]} Bf5 {[%emt 0:17:24]} 25. Rbc1 {[%emt 0:02:08]} Rxc1 {[%emt 0:01:56]} 26. Rxc1 {[%emt 0:04:14]} Qe4 {[%emt 0:01:59]} 27. Qd2 {[%emt 0:01:10]} Be6 {[%emt 0:00:03]} 28. Nc3 {[%emt 0:04:00]} Qb4 {[%emt 0:00:57]} 29. Qe2 {[%emt 0:03:23]} Qf4 {[%emt 0:03:48]} 30. Rc2 {[%emt 0:04:00]} Kg7 {[%emt 0:01:56]} 31. a4 {[%emt 0:07:38]} Bb3 {[%emt 0:01:05]} 32. Rd2 {[%emt 0:01:15]} Bc4 {[%emt 0:00:32]} 33. Nd5 {[%emt 0:01:17]} Bxd5 {[%emt 0:00:35]} 34. Rxd5 {[%emt 0:00:06]} Bd4 {[%emt 0:00:17]} 35. Rd7 {[%emt 0:00:51]} h5 {[%emt 0:00:17]} 36. Qf3 {[%emt 0:00:30]} Qc1+ {[%emt 0:00:27]} 37. Kh2 {[%emt 0:00:01]} Qc4 {[%emt 0:00:21]} 38. Qd5 {[%emt 0:00:06]} Qxa4 {[%emt 0:00:54]} 39. Qxf7+ {[%emt 0:00:53]} Kh6 {[%emt 0:00:02]} 40. h4 {[%emt 0:00:20]} 1-0

[Event "Belt and Road Women 2024"]
[Site "Yuecheng Shaoxing"]
[Date "2024.07.31"]
[Round "7.8"]
[White "Wang, Qinxuanyi"]
[Black "Garifullina, Leya"]
[Result "0-1"]
[ECO "D38"]
[WhiteElo "2149"]
[BlackElo "2458"]
[Annotator "TA"]
[PlyCount "158"]
[EventDate "2024.08.01"]
[EventType "swiss"]
[EventCountry "CHN"]
[SourceTitle "playchess.com"]
[Source "ChessBase"]
[SourceQuality "1"]
[TimeControl "5400+30"]

{[%evp 15,158,10,28,14,18,16,15,16,8,13,7,10,8,15,16,-11,-21,-7,-9,-14,-12,-29,0,-23,-22,-37,-12,-14,-10,-10,-9,-29,-29,-37,-37,-53,-35,-35,-35,-36,-36,-36,-36,-129,-97,-90,-90,-90,-90,-99,-99,-113,-1,-1,-1,-1,-1,-1,-1,-1,-1,-1,-1,-1,-1,-1,-1,-1,-1,-1,-1,-1,0,0,0,-1,-1,-1,-1,-1,0,-1,0,-1,-1,-285,-224,-460,-434,-925,-227,-939,-862,-890,-823,-673,-596,-1129,-651,-819,-1080,-394,-1007,-1230,-1363,-1508,-1379,-1573,-1618,-1535,-322,-1466,-79,-1138,-1416,-1808,-1243,-1865,-1266,-1460,-933,-1478,-499,-1550,-1280,-1244,-1562,-1537,-1351,-1313,-1173,-1168,-1163,-29973,-29975,-29975,-29976,-29972,-29973,-29980,-29981,-29980,-29981,-29980,-29981]} 1. d4 {[%emt 0:00:04]} Nf6 {[%emt 0:00:19]} 2. c4 {[%emt 0:00:08]} e6 {[%emt 0:00:05]} 3. Nf3 {[%emt 0:00:04]} d5 {[%emt 0:00:05]} 4. Nc3 {[%emt 0:00:05]} Bb4 {[%emt 0:00:14]} 5. Bg5 {[%emt 0:00:05]} h6 {[%emt 0:00:06]} 6. Bxf6 {[%emt 0:00:05]} Qxf6 {[%emt 0:00:05]} 7. e3 {[%emt 0:00:06]} O-O {[%emt 0:00:07]} 8. Rc1 {[%emt 0:00:02]} Nc6 {[%emt 0:00:19]} 9. a3 {[%emt 0:01:57]} Bxc3+ {[%emt 0:00:37]} 10. Rxc3 {[%emt 0:00:28]} dxc4 {[%emt 0:00:37]} 11. Bxc4 {[%emt 0:00:35] The position is equal.} e5 {[%emt 0:00:26]} 12. dxe5 {[%emt 0:00:46]} Nxe5 {[%emt 0:00:06]} 13. Nxe5 {[%emt 0:00:03]} Qxe5 {[%emt 0:00:07]} 14. O-O {[%emt 0:14:50]} Bf5 {[%emt 0:01:18]} 15. Qd5 {[%emt 0:00:58]} Qxd5 {[%emt 0:00:52]} 16. Bxd5 {[%emt 0:00:02]} c6 {[%emt 0:00:09]} 17. Bf3 {[%emt 0:00:06]} Rfd8 {[%emt 0:00:48]} 18. Rd1 {[%emt 0:10:56]} Rxd1+ {[%emt 0:01:49]} 19. Bxd1 $11 {[%emt 0:00:01][%mdl 4096] Endgame. KRB-KRB} Rd8 {[%emt 0:00:10]} 20. Bf3 {[%emt 0:00:05]} Rd2 {[%emt 0:02:04]} (20... Be4 $5) 21. g4 {[%emt 0:01:50]} Be6 {[%emt 0:05:01]} 22. b4 {[%emt 0:00:10]} Kf8 {[%emt 0:00:49]} 23. h3 {[%emt 0:08:32]} Rb2 {[%emt 0:02:17]} 24. Kg2 {[%emt 0:02:14]} Ke7 {[%emt 0:00:19]} 25. Kg3 {[%emt 0:02:34]} g5 {[%emt 0:03:01]} 26. Be4 {[%emt 0:01:27]} Rb3 {[%emt 0:01:16]} 27. Rxb3 {[%emt 0:02:57]} Bxb3 $15 {[%emt 0:00:04] KB-KB} 28. f4 {[%emt 0:01:16]} f6 {[%emt 0:06:23]} 29. Bh7 {[%emt 0:04:11]} ({Better is} 29. h4 $15) 29... b6 {[%emt 0:02:45]} 30. h4 {[%emt 0:04:36]} c5 {[%emt 0:00:50]} 31. bxc5 {[%emt 0:00:07]} bxc5 {[%emt 0:00:03]} 32. hxg5 {[%emt 0:00:56]} hxg5 {[%emt 0:03:03]} 33. Kf2 {[%emt 0:02:57]} Bd1 {[%emt 0:08:31]} ({Black should try} 33... Be6 $17 34. Kf3 c4) 34. Bf5 $11 {[%emt 0:00:19]} Kd6 {[%emt 0:00:43]} 35. Ke1 {[%emt 0:00:59]} Ba4 {[%emt 0:02:05]} 36. Kd2 {[%emt 0:01:36]} Bb3 {[%emt 0:15:43]} 37. Kc3 {[%emt 0:00:50]} Ba2 {[%emt 0:00:12]} 38. Bc8 {[%emt 0:02:23]} Bb1 {[%emt 0:00:06]} 39. Bb7 {[%emt 0:00:51]} Bg6 {[%emt 0:00:36]} 40. Bf3 {[%emt 0:02:31]} Bf7 {[%emt 0:00:23]} 41. Be2 {[%emt 0:01:44]} Bd5 {[%emt 0:01:15]} 42. Bd3 {[%emt 0:00:52]} Bf3 {[%emt 0:02:08]} 43. Bf5 {[%emt 0:00:03]} Kd5 {[%emt 0:00:15]} 44. Kd3 {[%emt 0:00:22]} Bg2 {[%emt 0:02:00]} 45. Bg6 {[%emt 0:02:01]} Bf1+ {[%emt 0:00:17]} 46. Kc3 {[%emt 0:00:04]} Ba6 {[%emt 0:01:49]} 47. Bf5 {[%emt 0:01:44] Prevents Bc8.} Bb5 {[%emt 0:00:48]} 48. Kd2 {[%emt 0:00:37]} Bf1 {[%emt 0:06:51]} 49. Kc3 {[%emt 0:00:52]} Bg2 {[%emt 0:00:08]} 50. Bg6 $2 {[%emt 0:01:22][%mdl 8192] [#] White is now going downhill.} (50. Bd7 $11) 50... Be4 $1 $19 {[%emt 0:03:03]} 51. Bf7+ {[%emt 0:08:50]} (51. Bh5 {was the only chance.}) 51... Kd6 {[%emt 0:00:04]} 52. fxg5 {[%emt 0:02:02]} (52. Bh5 $142 Bf3 53. fxg5 fxg5 54. Kd3) 52... fxg5 {[%emt 0:00:07]} 53. Bh5 $2 {[%emt 0:00:04]} (53. Kd2) 53... Bd5 {[%emt 0:00:31]} 54. Kd3 {[%emt 0:01:42]} Ke5 {[%emt 0:00:26]} 55. Ke2 {[%emt 0:00:56]} Bc4+ {[%emt 0:01:58]} 56. Kf2 {[%emt 0:01:35]} Bb5 {[%emt 0:01:31] Prevents Be8} 57. Bg6 {[%emt 0:01:33]} Bd7 {[%emt 0:01:09] Wards off Bf5} 58. Kf3 {[%emt 0:00:18]} c4 {[%emt 0:01:25]} 59. Bh7 {[%emt 0:02:23]} Kd5 {[%emt 0:03:13]} 60. Be4+ {[%emt 0:01:25]} Kc5 {[%emt 0:00:05] ...Bc6 would now be deadly.} 61. Bc2 {[%emt 0:00:06]} c3 {[%emt 0:00:37]} 62. Kg3 {[%emt 0:00:44]} a5 $2 {[%emt 0:03:56]} (62... Kc4 63. Kf3 Be6) 63. Kf3 {[%emt 0:00:20]} Be6 $2 {[%emt 0:01:51]} (63... Kc4 $19 64. Kg3 a4) 64. Ke4 $2 {[%emt 0:02:46][%mdl 8192]} (64. Ke2 $17) 64... Kc4 $1 {[%emt 0:02:29]} 65. Kf3 {[%emt 0:00:01]} Kd5 {[%emt 0:03:18]} 66. Kg3 {[%emt 0:00:45]} Ke5 {[%emt 0:01:15]} 67. Kf3 {[%emt 0:00:06]} Bc8 {[%emt 0:01:39]} 68. Bd3 {[%emt 0:01:31]} Bd7 {[%emt 0:02:16]} (68... Kd5 $142 69. Bc2 Kc4) 69. Bc2 {[%emt 0:00:18]} (69. Bh7 $142 Bc8 70. Bc2) 69... Be6 {[%emt 0:00:03]} 70. Ba4 {[%emt 0:00:37]} Bc4 {[%emt 0:00:11]} 71. Bc2 {[%emt 0:00:47] [#] Dodges Bd3} a4 $1 {[%emt 0:00:26][%mdl 512] ( -> ...Bb3)} 72. Bf5 {[%emt 0:01:03]} (72. Bg6 Be6) 72... Be6 {[%emt 0:04:52]} 73. Bd3 {[%emt 0:01:18]} Kd6 {[%emt 0:01:52]} 74. e4 {[%emt 0:01:45]} Ke5 {[%emt 0:01:41] Black mates.} 75. Ke3 {[%emt 0:00:44]} Bxg4 {[%emt 0:00:09]} 76. Bc2 {[%emt 0:00:59]} Bd7 {[%emt 0:00:04]} 77. Kd3 {[%emt 0:00:10] [#]} g4 $1 {[%emt 0:00:41]} 78. Bd1 {[%emt 0:00:17]} g3 {[%emt 0:00:17]} 79. Ke3 {[%emt 0:07:34]} Bc6 {[%emt 0:00:23] Weighted Error Value: White=0.59/Black=0.13 (very precise) .  Loses game:     	White=2     	---        Mistake:       	White=4     	Black=1      Inaccurate:     	White=1     	Black=1      OK:         	White=17    	Black=15     Best:        	White=1     	Black=3      Strong:       	---       	Black=1} 0-1

[Event "Belt and Road Women 2024"]
[Site "Yuecheng Shaoxing"]
[Date "2024.07.31"]
[Round "7.9"]
[White "Yan, Tianqi"]
[Black "Zhang, Xiao"]
[Result "1-0"]
[ECO "C65"]
[WhiteElo "2306"]
[BlackElo "2193"]
[Annotator "RC"]
[PlyCount "86"]
[EventDate "2024.08.01"]
[EventType "swiss"]
[EventCountry "CHN"]
[SourceTitle "playchess.com"]
[Source "ChessBase"]
[SourceQuality "1"]
[TimeControl "5400+30"]

1. e4 {[%emt 0:00:03]} e5 {[%emt 0:00:11]} 2. Nf3 {[%emt 0:00:08]} Nc6 {[%emt 0:00:05]} 3. Bb5 {[%emt 0:00:10]} Nf6 {[%emt 0:00:34]} 4. d3 {[%emt 0:00:45]} Bc5 {[%emt 0:00:18]} 5. c3 {[%emt 0:00:18]} d6 {[%emt 0:00:30]} 6. O-O {[%emt 0:00:23]} O-O {[%emt 0:00:05]} 7. Nbd2 {[%emt 0:02:37]} a6 {[%emt 0:00:14]} 8. Ba4 {[%emt 0:00:59]} Ba7 {[%emt 0:00:59]} 9. h3 {[%emt 0:00:58]} Nh5 {[%emt 0:03:16]} 10. Bxc6 {[%emt 0:09:28]} bxc6 {[%emt 0:00:06]} 11. d4 {[%emt 0:09:41]} exd4 {[%emt 0:24:56]} 12. Nxd4 {[%emt 0:04:31]} Qh4 {[%emt 0:18:26]} 13. Nxc6 {[%emt 0:31:57]} Bxh3 {[%emt 0:00:43]} 14. Nxa7 {[%emt 0:10:36]} Bxg2 {[%emt 0:09:47]} 15. Kxg2 {[%emt 0:00:17]} Nf4+ {[%emt 0:00:08]} 16. Kf3 {[%emt 0:00:08]} f5 {[%emt 0:00:20]} 17. Ke3 {[%emt 0:07:00]} fxe4 {[%emt 0:05:13]} 18. Nxe4 {[%emt 0:01:59]} Rae8 {[%emt 0:10:17]} 19. Kd2 {[%emt 0:02:40]} Rxe4 {[%emt 0:01:33]} 20. Kc2 {[%emt 0:00:14]} Re2+ {[%emt 0:03:52]} 21. Kb3 {[%emt 0:04:21]} Rb8+ {[%emt 0:09:51]} 22. Ka3 {[%emt 0:00:16]} Qh5 {[%emt 0:03:59]} 23. b4 {[%emt 0:02:30]} Nd5 {[%emt 0:02:29]} 24. Nc6 {[%emt 0:02:07]} Rbe8 {[%emt 0:03:44]} 25. Nd4 {[%emt 0:00:48]} Nxc3 {[%emt 0:00:26]} 26. Qb3+ {[%emt 0:00:10]} Kh8 {[%emt 0:00:41]} 27. Qxc3 {[%emt 0:00:54]} R2e4 {[%emt 0:00:06]} 28. Bb2 {[%emt 0:01:26]} a5 {[%emt 0:00:53]} 29. b5 {[%emt 0:01:04]} Qh4 {[%emt 0:00:44]} 30. Rae1 {[%emt 0:01:10]} d5 {[%emt 0:00:27]} 31. Nf5 {[%emt 0:03:11]} Qg4 {[%emt 0:00:33]} 32. Qxg7+ {[%emt 0:00:16]} Qxg7 {[%emt 0:00:02]} 33. Bxg7+ {[%emt 0:00:06]} Kg8 {[%emt 0:00:03]} 34. Rxe4 {[%emt 0:00:04]} Rxe4 {[%emt 0:00:06]} 35. Bc3 {[%emt 0:00:19]} Kf7 {[%emt 0:00:23]} 36. Bxa5 {[%emt 0:00:46]} Ke6 {[%emt 0:00:04]} 37. Ng3 {[%emt 0:00:21]} Rc4 {[%emt 0:00:06]} 38. Rh1 {[%emt 0:00:06]} d4 {[%emt 0:00:07]} 39. Kb3 {[%emt 0:00:40]} Rc5 {[%emt 0:00:05]} 40. a4 {[%emt 0:00:04]} d3 {[%emt 0:00:21]} 41. Rxh7 {[%emt 0:00:11]} Rc2 {[%emt 0:00:12]} 42. Ne4 {[%emt 0:00:10]} Kd5 {[%emt 0:00:30]} 43. Nd2 {[%emt 0:00:11]} Ke6 {[%emt 0:00:19]} 1-0

[Event "Belt and Road Women 2024"]
[Site "Yuecheng Shaoxing"]
[Date "2024.07.31"]
[Round "7.10"]
[White "Yang, Yijing"]
[Black "Kurmangaliyeva, Liya"]
[Result "0-1"]
[ECO "E10"]
[WhiteElo "2022"]
[BlackElo "2282"]
[Annotator "RC"]
[PlyCount "54"]
[EventDate "2024.08.01"]
[EventType "swiss"]
[EventCountry "CHN"]
[SourceTitle "playchess.com"]
[Source "ChessBase"]
[SourceQuality "1"]
[TimeControl "5400+30"]

1. d4 {[%emt 0:00:04]} Nf6 {[%emt 0:00:18]} 2. c4 {[%emt 0:00:09]} e6 {[%emt 0:00:12]} 3. Nf3 {[%emt 0:00:17]} h6 {[%emt 0:00:14]} 4. g3 {[%emt 0:04:27]} Bb4+ {[%emt 0:00:14]} 5. Bd2 {[%emt 0:01:30]} Be7 {[%emt 0:00:26]} 6. Qc2 {[%emt 0:03:32]} d5 {[%emt 0:01:00]} 7. Bg2 {[%emt 0:09:27]} c6 {[%emt 0:01:02]} 8. O-O {[%emt 0:00:32]} O-O {[%emt 0:00:20]} 9. Bf4 {[%emt 0:00:29]} Nbd7 {[%emt 0:00:18]} 10. Nbd2 {[%emt 0:04:48]} Nh5 {[%emt 0:04:42]} 11. Rad1 {[%emt 0:09:58]} a5 {[%emt 0:06:53]} 12. a4 {[%emt 0:10:35]} b6 {[%emt 0:09:45]} 13. cxd5 {[%emt 0:06:41]} cxd5 {[%emt 0:07:10]} 14. Bc7 {[%emt 0:13:27]} Qe8 {[%emt 0:00:32]} 15. Rfe1 {[%emt 0:00:11]} Bb7 {[%emt 0:21:21]} 16. Qb3 {[%emt 0:01:40]} Bb4 {[%emt 0:00:36]} 17. Rc1 {[%emt 0:00:53]} Qe7 {[%emt 0:03:54]} 18. Qe3 {[%emt 0:04:50]} Rac8 {[%emt 0:05:12]} 19. b3 {[%emt 0:17:37]} Ba6 {[%emt 0:03:17]} 20. g4 {[%emt 0:01:46]} Nhf6 {[%emt 0:02:30]} 21. h3 {[%emt 0:00:09]} Ne4 {[%emt 0:03:44]} 22. Nxe4 {[%emt 0:04:36]} dxe4 {[%emt 0:00:35]} 23. Nd2 {[%emt 0:00:06]} Nf6 {[%emt 0:00:24]} 24. Bf4 {[%emt 0:01:00]} Nd5 {[%emt 0:03:23]} 25. Qg3 {[%emt 0:01:55]} g5 {[%emt 0:01:09]} 26. Bxg5 {[%emt 0:02:02]} hxg5 {[%emt 0:00:19]} 27. Rxc8 {[%emt 0:00:45]} Rxc8 {[%emt 0:00:14]} 0-1

[Event "Belt and Road Women 2024"]
[Site "Yuecheng Shaoxing"]
[Date "2024.07.31"]
[Round "7.11"]
[White "Pham, Le Thao Nguyen"]
[Black "Kairbekova, Amina"]
[Result "1-0"]
[ECO "D02"]
[WhiteElo "2395"]
[BlackElo "2244"]
[Annotator "RC"]
[PlyCount "83"]
[EventDate "2024.08.01"]
[EventType "swiss"]
[EventCountry "CHN"]
[SourceTitle "playchess.com"]
[Source "ChessBase"]
[SourceQuality "1"]
[TimeControl "5400+30"]

1. d4 {[%emt 0:00:06]} Nf6 {[%emt 0:00:50]} 2. Nf3 {[%emt 0:00:49]} g6 {[%emt 0:00:05]} 3. Nbd2 {[%emt 0:00:55]} d5 {[%emt 0:04:15]} 4. e3 {[%emt 0:01:01]} Bg7 {[%emt 0:00:05]} 5. b4 {[%emt 0:00:59]} a5 {[%emt 0:00:24]} 6. b5 {[%emt 0:00:43]} c5 {[%emt 0:00:07]} 7. bxc6 {[%emt 0:01:49]} Nxc6 {[%emt 0:00:11]} 8. Ba3 {[%emt 0:01:05]} O-O {[%emt 0:00:22]} 9. Be2 {[%emt 0:00:53]} Re8 {[%emt 0:05:32]} 10. O-O {[%emt 0:01:26]} Bf5 {[%emt 0:11:17]} 11. c3 {[%emt 0:07:26]} Qc7 {[%emt 0:24:07]} 12. Rc1 {[%emt 0:03:01]} Ne4 {[%emt 0:12:51]} 13. Nxe4 {[%emt 0:05:43]} Bxe4 {[%emt 0:00:12]} 14. Nd2 {[%emt 0:02:12]} Bf5 {[%emt 0:00:06]} 15. Qb3 {[%emt 0:05:14]} e5 {[%emt 0:08:12]} 16. Bf3 {[%emt 0:10:57]} Bd3 {[%emt 0:05:53]} 17. Rfe1 {[%emt 0:02:01]} a4 {[%emt 0:02:31]} 18. Qd1 {[%emt 0:04:59]} Qa5 {[%emt 0:02:14]} 19. Be2 {[%emt 0:01:14]} Bxe2 {[%emt 0:04:50]} 20. Rxe2 {[%emt 0:00:26]} Rac8 {[%emt 0:01:05]} 21. Nf1 {[%emt 0:04:34]} Qa6 {[%emt 0:00:41]} 22. Rb2 {[%emt 0:01:12]} Na5 {[%emt 0:01:22]} 23. Bc5 {[%emt 0:05:55]} Nc4 {[%emt 0:00:35]} 24. Rbb1 {[%emt 0:01:03]} b6 {[%emt 0:00:57]} 25. Bb4 {[%emt 0:00:12]} a3 {[%emt 0:02:05]} 26. Rb3 {[%emt 0:03:09]} Rc6 {[%emt 0:05:24]} 27. dxe5 {[%emt 0:03:25]} Bxe5 {[%emt 0:04:28]} 28. Qxd5 {[%emt 0:02:21]} Rcc8 {[%emt 0:00:37]} 29. Rd1 {[%emt 0:03:23]} b5 {[%emt 0:02:52]} 30. h3 {[%emt 0:01:51]} Bg7 {[%emt 0:00:42]} 31. Qf3 {[%emt 0:00:59]} h5 {[%emt 0:00:35]} 32. Nd2 {[%emt 0:04:09]} Nb2 {[%emt 0:00:24]} 33. Rxa3 {[%emt 0:01:45]} Qe6 {[%emt 0:00:32]} 34. Rb1 {[%emt 0:01:05]} Na4 {[%emt 0:00:32]} 35. c4 {[%emt 0:03:41]} Bb2 {[%emt 0:00:14]} 36. Rxa4 {[%emt 0:00:30]} bxa4 {[%emt 0:00:27]} 37. Rxb2 {[%emt 0:00:08]} Red8 {[%emt 0:00:23]} 38. a3 {[%emt 0:00:56]} Qe5 {[%emt 0:00:40]} 39. Rb1 {[%emt 0:00:43]} Rb8 {[%emt 0:00:05]} 40. Qe2 {[%emt 0:01:33]} Qf5 {[%emt 0:00:22]} 41. Rc1 {[%emt 0:00:32]} Qf6 {[%emt 0:00:41]} 42. Nf3 {[%emt 0:01:15]} 1-0